fUSD/lending_fUSD_20250720
["ID","MTS","AMOUNT","RATE_DAILY","PERIOD"]
[373410294,1752989456048,-151.0,0.000195,2]
[373410295,1752989456058,-500.0,0.00019505,2]
[373410296,1752989456070,-782.2,0.00019505,2]
[373410297,1752989456079,-780.52,0.00019505,2]
[373410298,1752989456090,-500.0,0.00019505,2]
[373410299,1752989456099,-568.51,0.00019505,2]
[373410300,1752989456109,-568.51,0.00019505,2]
[373410301,1752989456120,-151.0,0.00019506,2]
[373410302,1752989456130,-151.0,0.00019506,2]
[373410303,1752989456141,-151.0,0.00019506,2]
[373410304,1752989456150,-151.0,0.00019506,2]
[373410305,1752989456162,-151.0,0.00019506,2]
[373410306,1752989456173,-841.61,0.00019506,2]
[373410307,1752989456183,-151.0,0.00019506,2]
[373410308,1752989456194,-166.231172,0.00019506,2]
[373410309,1752989456204,-151.0,0.00019506,2]
[373410310,1752989456214,-151.0,0.00019506,2]
[373410311,1752989456223,-151.0,0.00019506,2]
[373410312,1752989456233,-480.0,0.00019506,2]
[373410313,1752989456242,-151.0,0.00019506,2]
[373410314,1752989456252,-480.0,0.00019506,2]
[373410315,1752989456262,-480.0,0.00019506,2]
[373410316,1752989456272,-480.0,0.00019506,2]
[373410317,1752989456281,-480.0,0.00019506,2]
[373410318,1752989456291,-480.0,0.00019506,2]
[373410319,1752989456301,-480.0,0.00019506,2]
[373410320,1752989456312,-1309.4,0.00019506,2]
[373410321,1752989456321,-480.0,0.00019506,2]
[373410322,1752989456331,-2661.09,0.00019506,2]
[373410323,1752989456340,-604.79,0.00019506,2]
[373410324,1752989456350,-480.0,0.00019506,2]
[373410325,1752989456360,-151.0,0.00019506,2]
[373410326,1752989456370,-480.0,0.00019506,2]
[373410327,1752989456379,-480.0,0.00019506,2]
[373410328,1752989456389,-480.0,0.00019506,2]
[373410329,1752989456399,-480.0,0.00019506,2]
[373410330,1752989456410,-151.0,0.00019506,2]
[373410331,1752989456419,-480.0,0.00019506,2]
[373410332,1752989456429,-682.77,0.00019506,2]
[373410333,1752989456438,-151.0,0.00019506,2]
[373410334,1752989456448,-480.0,0.00019506,2]
[373410335,1752989456458,-248.259533,0.00019506,2]
[373410336,1752989456467,-540.39,0.00019506,2]
[373410337,1752989456477,-480.0,0.00019506,2]
[373410338,1752989456487,-480.0,0.00019506,2]
[373410339,1752989456497,-574.5612911,0.00019506,2]
[373410340,1752989456506,-480.0,0.00019506,2]
[373410341,1752989456516,-611.86,0.00019506,2]
[373410342,1752989456526,-480.0,0.00019506,2]
[373410343,1752989456536,-847.28,0.00019506,2]
[373410344,1752989456546,-494.95,0.00019506,2]
[373410345,1752989456556,-811.98,0.00019506,2]
[373410346,1752989456565,-480.0,0.00019506,2]
[373410347,1752989456575,-480.0,0.00019506,2]
[373410348,1752989456585,-480.0,0.00019506,2]
[373410349,1752989456594,-151.0,0.00019506,2]
[373410350,1752989456604,-572.32,0.00019506,2]
[373410351,1752989456614,-480.0,0.00019506,2]
[373410352,1752989456624,-480.0,0.00019506,2]
[373410353,1752989456634,-379.88,0.00019506,2]
[373410354,1752989456646,-480.0,0.00019506,2]
[373410355,1752989456656,-480.0,0.00019506,2]
[373410356,1752989456665,-675.62,0.00019506,2]
[373410357,1752989456675,-480.0,0.00019506,2]
[373410358,1752989456687,-480.0,0.00019506,2]
[373410359,1752989456696,-480.0,0.00019506,2]
[373410360,1752989456706,-480.0,0.00019506,2]
[373410361,1752989456716,-480.0,0.00019506,2]
[373410362,1752989456726,-480.0,0.00019506,2]
[373410363,1752989456735,-480.0,0.00019506,2]
[373410364,1752989456745,-151.0,0.00019506,2]
[373410365,1752989456755,-480.0,0.00019506,2]
[373410366,1752989456765,-480.0,0.00019506,2]
[373410367,1752989456774,-480.0,0.00019506,2]
[373410368,1752989456784,-753.07,0.00019506,2]
[373410369,1752989456793,-268.75757066,0.00019506,2]
[373410370,1752989456803,-480.0,0.00019506,2]
[373410371,1752989456813,-619.31,0.00019506,2]
[373410372,1752989456823,-1339.47,0.00019506,2]
[373410373,1752989456832,-480.0,0.00019506,2]
[373410374,1752989456842,-1158.17,0.00019506,2]
[373410375,1752989456851,-480.0,0.00019506,2]
[373410376,1752989456861,-480.0,0.00019506,2]
[373410377,1752989456871,-480.0,0.00019506,2]
[373410378,1752989456881,-480.0,0.00019506,2]
[373410379,1752989456891,-480.0,0.00019506,2]
[373410380,1752989456901,-480.0,0.00019506,2]
[373410381,1752989456911,-593.59,0.00019506,2]
[373410382,1752989456921,-835.59,0.00019506,2]
[373410383,1752989456930,-151.0,0.00019506,2]
[373410384,1752989456940,-480.0,0.00019506,2]
[373410385,1752989456950,-480.0,0.00019506,2]
[373410386,1752989456960,-516.69,0.00019506,2]
[373410387,1752989456969,-4533.89,0.00019506,2]
[373410388,1752989456979,-480.0,0.00019506,2]
[373410389,1752989456990,-488.18,0.00019506,2]
[373410390,1752989457001,-480.0,0.00019506,2]
[373410391,1752989457011,-480.0,0.00019506,2]
[373410392,1752989457020,-480.0,0.00019506,2]
[373410393,1752989457030,-848.23,0.00019506,2]
[373410394,1752989457042,-480.0,0.00019506,2]
[373410395,1752989457052,-480.0,0.00019506,2]
[373410396,1752989457062,-834.19,0.00019506,2]
[373410397,1752989457072,-480.0,0.00019506,2]
[373410398,1752989457082,-480.0,0.00019506,2]
[373410399,1752989457092,-480.0,0.00019506,2]
[373410400,1752989457102,-480.0,0.00019506,2]
[373410401,1752989457112,-421.16601618,0.00019506,2]
[373410402,1752989457121,-480.0,0.00019506,2]
[373410403,1752989457132,-480.0,0.00019506,2]
[373410404,1752989457143,-528.82,0.00019506,2]
[373410405,1752989457153,-480.0,0.00019506,2]
[373410406,1752989457162,-418.39181661,0.00019506,2]
[373410407,1752989457172,-480.0,0.00019506,2]
[373410408,1752989457184,-480.0,0.00019506,2]
[373410409,1752989457193,-480.0,0.00019506,2]
[373410410,1752989457203,-480.0,0.00019506,2]
[373410411,1752989457213,-480.0,0.00019506,2]
[373410412,1752989457222,-480.0,0.00019506,2]
[373410413,1752989457232,-781.89,0.00019506,2]
[373410414,1752989457242,-635.94,0.00019506,2]
[373410415,1752989457252,-480.0,0.00019506,2]
[373410416,1752989457264,-680.69,0.00019506,2]
[373410417,1752989457274,-480.0,0.00019506,2]
[373410418,1752989457283,-480.0,0.00019506,2]
[373410419,1752989457293,-565.07,0.00019506,2]
[373410420,1752989457303,-548.871019,0.00019506,2]
[373410421,1752989457316,-693.28,0.00019506,2]
[373410422,1752989457326,-548.871019,0.00019506,2]
[373410423,1752989457336,-3057.61,0.00019506,2]
[373410424,1752989457346,-480.0,0.00019506,2]
[373410425,1752989457356,-480.0,0.00019506,2]
[373410426,1752989457365,-482.17,0.00019506,2]
[373410427,1752989457374,-480.0,0.00019506,2]
[373410428,1752989457384,-151.0,0.00019506,2]
[373410429,1752989457394,-480.0,0.00019506,2]
[373410430,1752989457404,-359.11,0.00019506,2]
[373410431,1752989457413,-2164.12,0.00019506,2]
[373410432,1752989457422,-253.5107841,0.00019506,2]
[373410433,1752989457432,-480.0,0.00019506,2]
[373410434,1752989457441,-1320.33,0.00019506,2]
[373410435,1752989457451,-1000.0,0.00019506,2]
[373410436,1752989457460,-530.73,0.00019506,2]
[373410437,1752989457470,-532.02,0.00019506,2]
[373410438,1752989457480,-480.0,0.00019506,2]
[373410439,1752989457489,-480.0,0.00019506,2]
[373410440,1752989457499,-480.0,0.00019506,2]
[373410441,1752989457508,-480.0,0.00019506,2]
[373410442,1752989457518,-480.0,0.00019506,2]
[373410443,1752989457528,-480.0,0.00019506,2]
[373410444,1752989457537,-480.0,0.00019506,2]
[373410445,1752989457547,-480.0,0.00019506,2]
[373410446,1752989457556,-502.43,0.00019506,2]
[373410447,1752989457566,-1171.57,0.00019506,2]
[373410448,1752989457576,-2437.85,0.00019506,2]
[373410449,1752989457585,-2705.91,0.00019506,2]
[373410450,1752989457595,-480.0,0.00019506,2]
[373410451,1752989457604,-480.0,0.00019506,2]
[373410452,1752989457613,-480.0,0.00019506,2]
[373410453,1752989457623,-480.0,0.00019506,2]
[373410454,1752989457632,-480.0,0.00019506,2]
[373410455,1752989457642,-480.0,0.00019506,2]
[373410456,1752989457651,-151.0,0.00019506,2]
[373410457,1752989457661,-480.0,0.00019506,2]
[373410458,1752989457670,-845.02,0.00019506,2]
[373410459,1752989457680,-487.14,0.00019506,2]
[373410460,1752989457689,-557.8,0.00019506,2]
[373410461,1752989457699,-862.06,0.00019506,2]
[373410462,1752989457708,-480.0,0.00019506,2]
[373410463,1752989457719,-1137.62,0.00019506,2]
[373410464,1752989457729,-536.7,0.00019506,2]
[373410465,1752989457739,-567.96,0.00019506,2]
[373410466,1752989457748,-480.0,0.00019506,2]
[373410467,1752989457758,-487.95,0.00019506,2]
[373410468,1752989457767,-480.0,0.00019506,2]
[373410469,1752989457776,-480.0,0.00019506,2]
[373410470,1752989457786,-540.57,0.00019506,2]
[373410471,1752989457796,-920.6,0.00019506,2]
[373410472,1752989457806,-480.0,0.00019506,2]
[373410473,1752989457815,-1882.7,0.00019506,2]
[373410474,1752989457825,-665.71,0.00019506,2]
[373410475,1752989457835,-1170.57,0.00019506,2]
[373410476,1752989458052,-991.0,0.00019506,2]
[373410477,1752989458106,-546.09,0.00019506,2]
[373410478,1752989458119,-507.4,0.00019506,2]
[373410479,1752989458131,-1122.48,0.00019506,2]
[373410480,1752989458141,-480.0,0.00019506,2]
[373410481,1752989458150,-1064.41,0.00019506,2]
[373410482,1752989458160,-480.0,0.00019506,2]
[373410483,1752989458170,-620.05,0.00019506,2]
[373410484,1752989458182,-1197.86,0.00019506,2]
[373410485,1752989458192,-591.75,0.00019506,2]
[373410486,1752989458202,-1679.81,0.00019506,2]
[373410487,1752989458211,-645.32,0.00019506,2]
[373410488,1752989458222,-480.0,0.00019506,2]
[373410489,1752989458233,-151.0,0.00019506,2]
[373410490,1752989458242,-5540.01,0.00019506,2]
[373410491,1752989458253,-321.88849422,0.00019506,2]
[373410492,1752989458263,-1005.5,0.00019506,2]
[373410493,1752989458274,-151.0,0.00019506,2]
[373410494,1752989458284,-480.0,0.00019506,2]
[373410495,1752989458293,-1103.07,0.00019506,2]
[373410496,1752989458303,-947.41,0.00019506,2]
[373410497,1752989458313,-480.0,0.00019506,2]
[373410498,1752989458322,-480.0,0.00019506,2]
[373410499,1752989458332,-480.0,0.00019506,2]
[373410500,1752989458343,-902.23,0.00019506,2]
[373410501,1752989458351,-823.73,0.00019506,2]
[373410502,1752989458361,-480.0,0.00019506,2]
[373410503,1752989458370,-830.46,0.00019506,2]
[373410504,1752989458379,-151.0,0.00019506,2]
[373410505,1752989458390,-495.66,0.00019506,2]
[373410506,1752989458399,-823.26,0.00019506,2]
[373410507,1752989458409,-480.0,0.00019506,2]
[373410508,1752989458418,-151.0,0.00019506,2]
[373410509,1752989458428,-480.0,0.00019506,2]
[373410510,1752989458437,-480.0,0.00019506,2]
[373410511,1752989458446,-2236.11,0.00019506,2]
[373410512,1752989458456,-480.0,0.00019506,2]
[373410513,1752989458466,-822.96,0.00019506,2]
[373410514,1752989458476,-481.9,0.00019506,2]
[373410515,1752989458486,-648.25,0.00019506,2]
[373410516,1752989458495,-480.0,0.00019506,2]
[373410517,1752989458506,-705.02,0.00019506,2]
[373410518,1752989458516,-480.0,0.00019506,2]
[373410519,1752989458526,-570.6,0.00019506,2]
[373410520,1752989458535,-1258.95,0.00019506,2]
[373410521,1752989458545,-480.0,0.00019506,2]
[373410522,1752989458555,-492.36,0.00019506,2]
[373410523,1752989458565,-1019.07,0.00019506,2]
[373410524,1752989458574,-480.0,0.00019506,2]
[373410525,1752989458583,-170.952122,0.00019506,2]
[373410526,1752989458593,-580.94,0.00019506,2]
[373410527,1752989458604,-480.0,0.00019506,2]
[373410528,1752989458613,-480.0,0.00019506,2]
[373410529,1752989458623,-170.952122,0.00019506,2]
[373410530,1752989458634,-480.0,0.00019506,2]
[373410531,1752989458644,-480.0,0.00019506,2]
[373410532,1752989458653,-480.0,0.00019506,2]
[373410533,1752989458663,-551.42,0.00019506,2]
[373410534,1752989458674,-2183.79,0.00019506,2]
[373410535,1752989458684,-766.07,0.00019506,2]
[373410536,1752989458693,-489.75,0.00019506,2]
[373410537,1752989458703,-480.0,0.00019506,2]
[373410538,1752989458714,-721.71,0.00019506,2]
[373410539,1752989458724,-3940.47,0.00019506,2]
[373410540,1752989458735,-978.15,0.00019506,2]
[373410541,1752989458746,-1467.13,0.00019506,2]
[373410542,1752989458756,-735.45,0.00019506,2]
[373410543,1752989458766,-480.0,0.00019506,2]
[373410544,1752989458777,-480.0,0.00019506,2]
[373410545,1752989458788,-513.27,0.00019506,2]
[373410546,1752989458800,-480.0,0.00019506,2]
[373410547,1752989458809,-1837.11,0.00019506,2]
[373410548,1752989458819,-480.0,0.00019506,2]
[373410549,1752989458829,-618.52,0.00019506,2]
[373410550,1752989458838,-796.25,0.00019506,2]
[373410551,1752989458848,-480.0,0.00019506,2]
[373410552,1752989458857,-1465.3,0.00019506,2]
[373410553,1752989458867,-995.79,0.00019506,2]
[373410554,1752989458876,-604.84,0.00019506,2]
[373410555,1752989458886,-480.0,0.00019506,2]
[373410556,1752989458896,-581.68,0.00019506,2]
[373410557,1752989458906,-1231.45,0.00019506,2]
[373410558,1752989458915,-151.0,0.00019506,2]
[373410559,1752989458926,-789.99,0.00019506,2]
[373410560,1752989458935,-480.0,0.00019506,2]
[373410561,1752989458944,-1780.72,0.00019506,2]
[373410562,1752989458954,-1111.42,0.00019506,2]
[373410563,1752989458964,-705.48,0.00019506,2]
[373410564,1752989458975,-480.0,0.00019506,2]
[373410565,1752989458988,-3284.08,0.00019506,2]
[373410566,1752989458998,-8037.86,0.00019506,2]
[373410567,1752989459007,-3107.59,0.00019506,2]
[373410568,1752989459017,-480.0,0.00019506,2]
[373410569,1752989459026,-1037.79,0.00019506,2]
[373410570,1752989459035,-480.0,0.00019506,2]
[373410571,1752989459045,-1098.54,0.00019506,2]
[373410572,1752989459056,-599.29,0.00019506,2]
[373410573,1752989459070,-609.77,0.00019506,2]
[373410574,1752989459081,-480.0,0.00019506,2]
[373410575,1752989459092,-480.0,0.00019506,2]
[373410576,1752989459104,-673.73,0.00019506,2]
[373410577,1752989459117,-661.0,0.00019506,2]
[373410578,1752989459127,-480.0,0.00019506,2]
[373410579,1752989459137,-480.0,0.00019506,2]
[373410580,1752989459147,-480.0,0.00019506,2]
[373410581,1752989459156,-822.08,0.00019506,2]
[373410582,1752989459167,-638.51,0.00019506,2]
[373410583,1752989459177,-480.0,0.00019506,2]
[373410584,1752989459187,-480.0,0.00019506,2]
[373410585,1752989459197,-480.0,0.00019506,2]
[373410586,1752989459209,-2821.88,0.00019506,2]
[373410587,1752989459220,-3713.37,0.00019506,2]
[373410588,1752989459230,-480.0,0.00019506,2]
[373410589,1752989459240,-480.0,0.00019506,2]
[373410590,1752989459250,-861.55,0.00019506,2]
[373410591,1752989459260,-1433.3,0.00019506,2]
[373410592,1752989459273,-480.0,0.00019506,2]
[373410593,1752989459284,-490.4,0.00019506,2]
[373410594,1752989459294,-480.0,0.00019506,2]
[373410595,1752989459305,-1005.45,0.00019506,2]
[373410596,1752989459316,-480.0,0.00019506,2]
[373410597,1752989459326,-151.0,0.00019506,2]
[373410598,1752989459338,-970.96,0.00019506,2]
[373410599,1752989459349,-480.0,0.00019506,2]
[373410600,1752989459359,-1110.81,0.00019506,2]
[373410601,1752989459369,-924.98,0.00019506,2]
[373410602,1752989459378,-151.0,0.00019506,2]
[373410603,1752989459388,-488.83,0.00019506,2]
[373410604,1752989459398,-1143.92,0.00019506,2]
[373410605,1752989459407,-151.0,0.00019506,2]
[373410606,1752989459419,-480.0,0.00019506,2]
[373410607,1752989459429,-1942.24,0.00019506,2]
[373410608,1752989459439,-1865.06,0.00019506,2]
[373410609,1752989459448,-480.0,0.00019506,2]
[373410610,1752989459458,-480.0,0.00019506,2]
[373410611,1752989459467,-480.0,0.00019506,2]
[373410612,1752989459476,-480.0,0.00019506,2]
[373410613,1752989459487,-2661.07,0.00019506,2]
[373410614,1752989459497,-1386.53,0.00019506,2]
[373410615,1752989459507,-1282.06,0.00019506,2]
[373410616,1752989459517,-480.0,0.00019506,2]
[373410617,1752989459526,-480.0,0.00019506,2]
[373410618,1752989459536,-662.17,0.00019506,2]
[373410619,1752989459547,-480.0,0.00019506,2]
[373410620,1752989459556,-548.66,0.00019506,2]
[373410621,1752989459565,-607.57,0.00019506,2]
[373410622,1752989459575,-151.0,0.00019506,2]
[373410623,1752989459587,-1091.85,0.00019506,2]
[373410624,1752989459596,-480.0,0.00019506,2]
[373410625,1752989459606,-1824.76,0.00019506,2]
[373410626,1752989459617,-480.0,0.00019506,2]
[373410627,1752989459635,-302.531764,0.00019506,2]
[373410628,1752989459649,-151.0,0.00019506,2]
[373410629,1752989459658,-1464.86,0.00019506,2]
[373410630,1752989459668,-483.06,0.00019506,2]
[373410631,1752989459677,-480.0,0.00019506,2]
[373410632,1752989459686,-5718.46,0.00019506,2]
[373410633,1752989459695,-302.531764,0.00019506,2]
[373410634,1752989459705,-480.0,0.00019506,2]
[373410635,1752989459715,-1012.96,0.00019506,2]
[373410636,1752989459725,-480.0,0.00019506,2]
[373410637,1752989459735,-480.0,0.00019506,2]
[373410638,1752989459745,-786.49,0.00019506,2]
[373410639,1752989459754,-994.74,0.00019506,2]
[373410640,1752989459763,-635.8,0.00019506,2]
[373410641,1752989459772,-489.06,0.00019506,2]
[373410642,1752989459782,-650.01,0.00019506,2]
[373410643,1752989459791,-480.0,0.00019506,2]
[373410644,1752989459801,-856.56,0.00019506,2]
[373410645,1752989459811,-1960.62,0.00019506,2]
[373410646,1752989460032,-480.0,0.00019506,2]
[373410647,1752989460048,-480.0,0.00019506,2]
[373410648,1752989460059,-480.0,0.00019506,2]
[373410649,1752989460069,-480.0,0.00019506,2]
[373410650,1752989460079,-568.77,0.00019506,2]
[373410651,1752989460089,-451.06458356,0.00019506,2]
[373410652,1752989460099,-484.36,0.00019506,2]
[373410653,1752989460108,-662.08,0.00019506,2]
[373410654,1752989460121,-480.0,0.00019506,2]
[373410655,1752989460130,-3491.99,0.00019506,2]
[373410656,1752989460141,-480.0,0.00019506,2]
[373410657,1752989460150,-2617.19,0.00019506,2]
[373410658,1752989460160,-838.32,0.00019506,2]
[373410659,1752989460170,-480.0,0.00019506,2]
[373410660,1752989460179,-562.74,0.00019506,2]
[373410661,1752989460189,-580.87302246,0.00019506,2]
[373410662,1752989460199,-480.0,0.00019506,2]
[373410663,1752989460208,-631.6,0.00019506,2]
[373410664,1752989460218,-480.0,0.00019506,2]
[373410665,1752989460228,-1984.3,0.00019506,2]
[373410666,1752989460237,-480.0,0.00019506,2]
[373410667,1752989460247,-1016.15,0.00019506,2]
[373410668,1752989460256,-21544.09,0.00019506,2]
[373410669,1752989460266,-600.54,0.00019506,2]
[373410670,1752989460275,-526.14,0.00019506,2]
[373410671,1752989460284,-161.2736859,0.00019506,2]
[373410672,1752989460295,-500.0,0.00019516,2]
[373410673,1752989460305,-500.0,0.00019516,2]
[373410674,1752989460315,-500.0,0.00019516,2]
[373410675,1752989460324,-500.0,0.00019516,2]
[373410676,1752989460333,-500.0,0.00019516,2]
[373410677,1752989460343,-500.0,0.00019516,2]
[373410678,1752989460352,-500.0,0.00019516,2]
[373410679,1752989460361,-500.0,0.00019516,2]
[373410680,1752989460371,-500.0,0.00019516,2]
[373410681,1752989460381,-500.0,0.00019516,2]
[373410682,1752989460392,-500.0,0.00019516,2]
[373410683,1752989460402,-500.0,0.00019516,2]
[373410684,1752989460411,-500.0,0.00019516,2]
[373410685,1752989460420,-500.0,0.00019516,2]
[373410686,1752989460430,-500.0,0.00019516,2]
[373410687,1752989460439,-500.0,0.00019516,2]
[373410688,1752989460448,-500.0,0.00019516,2]
[373410689,1752989460458,-500.0,0.00019516,2]
[373410690,1752989460468,-500.0,0.00019516,2]
[373410691,1752989460478,-500.0,0.00019516,2]
[373410692,1752989460487,-500.0,0.00019516,2]
[373410693,1752989460498,-500.0,0.00019516,2]
[373410694,1752989460508,-500.0,0.00019516,2]
[373410695,1752989460519,-500.0,0.00019516,2]
[373410696,1752989460528,-500.0,0.00019516,2]
[373410697,1752989460537,-795.0,0.00019516,2]
[373410698,1752989460548,-500.0,0.00019516,2]
[373410699,1752989460558,-500.0,0.00019516,2]
[373410700,1752989460568,-500.0,0.00019516,2]
[373410701,1752989460577,-500.0,0.00019516,2]
[373410702,1752989460586,-500.0,0.00019516,2]
[373410703,1752989460595,-500.0,0.00019516,2]
[373410704,1752989460605,-500.0,0.00019516,2]
[373410705,1752989460615,-500.0,0.00019516,2]
[373410706,1752989460624,-500.0,0.00019516,2]
[373410707,1752989460633,-500.0,0.00019516,2]
[373410708,1752989460643,-500.0,0.00019516,2]
[373410709,1752989460652,-500.0,0.00019516,2]
[373410710,1752989460661,-500.0,0.00019516,2]
[373410711,1752989460728,-500.0,0.00019516,2]
[373410712,1752989460737,-500.0,0.00019516,2]
[373410713,1752989460746,-500.0,0.00019516,2]
[373410714,1752989460756,-500.0,0.00019516,2]
[373410715,1752989460766,-500.0,0.00019516,2]
[373410716,1752989460776,-500.0,0.00019516,2]
[373410717,1752989460785,-500.0,0.00019516,2]
[373410718,1752989460796,-500.0,0.00019516,2]
[373410719,1752989460805,-500.0,0.00019516,2]
[373410720,1752989460818,-500.0,0.00019516,2]
[373410721,1752989460827,-500.0,0.00019516,2]
[373410722,1752989460836,-500.0,0.00019516,2]
[373410723,1752989460845,-500.0,0.00019516,2]
[373410724,1752989460854,-500.0,0.00019516,2]
[373410725,1752989460863,-500.0,0.00019516,2]
[373410726,1752989460872,-500.0,0.00019516,2]
[373410727,1752989460881,-500.0,0.00019516,2]
[373410728,1752989460891,-500.0,0.00019516,2]
[373410729,1752989460901,-500.0,0.00019516,2]
[373410730,1752989460910,-500.0,0.00019516,2]
[373410731,1752989460919,-500.0,0.00019516,2]
[373410732,1752989460928,-500.0,0.00019516,2]
[373410733,1752989460937,-500.0,0.00019516,2]
[373410734,1752989460946,-500.0,0.00019516,2]
[373410735,1752989460955,-500.0,0.00019516,2]
[373410736,1752989460964,-500.0,0.00019516,2]
[373410737,1752989460973,-500.0,0.00019516,2]
[373410738,1752989460982,-500.0,0.00019516,2]
[373410739,1752989460991,-500.0,0.00019516,2]
[373410740,1752989461000,-500.0,0.00019516,2]
[373410741,1752989461010,-500.0,0.00019516,2]
[373410742,1752989461020,-500.0,0.00019516,2]
[373410743,1752989461029,-500.0,0.00019516,2]
[373410744,1752989461041,-500.0,0.00019516,2]
[373410745,1752989461051,-500.0,0.00019516,2]
[373410746,1752989461060,-500.0,0.00019516,2]
[373410747,1752989461069,-500.0,0.00019516,2]
[373410748,1752989461079,-500.0,0.00019516,2]
[373410749,1752989461088,-500.0,0.00019516,2]
[373410750,1752989461098,-500.0,0.00019516,2]
[373410751,1752989461107,-500.0,0.00019516,2]
[373410752,1752989461116,-500.0,0.00019516,2]
[373410753,1752989461125,-500.0,0.00019516,2]
[373410754,1752989461134,-500.0,0.00019516,2]
[373410755,1752989461144,-500.0,0.00019516,2]
[373410756,1752989461153,-500.0,0.00019516,2]
[373410757,1752989461163,-500.0,0.00019516,2]
[373410758,1752989461172,-500.0,0.00019516,2]
[373410759,1752989461181,-500.0,0.00019516,2]
[373410760,1752989461190,-500.0,0.00019516,2]
[373410761,1752989461199,-500.0,0.00019516,2]
[373410762,1752989461208,-500.0,0.00019516,2]
[373410763,1752989461217,-500.0,0.00019516,2]
[373410764,1752989461227,-500.0,0.00019516,2]
[373410765,1752989461235,-500.0,0.00019516,2]
[373410766,1752989461245,-500.0,0.00019516,2]
[373410767,1752989461254,-500.0,0.00019516,2]
[373410768,1752989461263,-500.0,0.00019516,2]
[373410769,1752989461272,-500.0,0.00019516,2]
[373410770,1752989461281,-500.0,0.00019516,2]
[373410771,1752989461290,-500.0,0.00019516,2]
[373410772,1752989461299,-500.0,0.00019516,2]
[373410773,1752989461309,-500.0,0.00019516,2]
[373410774,1752989461318,-500.0,0.00019516,2]
[373410775,1752989461327,-500.0,0.00019516,2]
[373410776,1752989461336,-500.0,0.00019516,2]
[373410777,1752989461345,-500.0,0.00019516,2]
[373410778,1752989461354,-500.0,0.00019516,2]
[373410779,1752989461363,-500.0,0.00019516,2]
[373410780,1752989461372,-500.0,0.00019516,2]
[373410781,1752989461381,-500.0,0.00019516,2]
[373410782,1752989461390,-500.0,0.00019516,2]
[373410783,1752989461400,-500.0,0.00019516,2]
[373410784,1752989461409,-500.0,0.00019516,2]
[373410785,1752989461418,-500.0,0.00019516,2]
[373410786,1752989461427,-500.0,0.00019516,2]
[373410787,1752989461436,-500.0,0.00019516,2]
[373410788,1752989461445,-500.0,0.00019516,2]
[373410789,1752989461455,-500.0,0.00019516,2]
[373410790,1752989461463,-500.0,0.00019516,2]
[373410791,1752989461472,-500.0,0.00019516,2]
[373410792,1752989461482,-500.0,0.00019516,2]
[373410793,1752989461491,-500.0,0.00019516,2]